fUSD/lending_fUSD_20250606
["ID","MTS","AMOUNT","RATE_DAILY","PERIOD"]
[364749415,1749228634884,-480.0,0.00027397,5]
[364749416,1749228634893,-483.65379285,0.00027397,5]
[364749417,1749228634903,-480.0,0.00027397,5]
[364749418,1749228634912,-480.0,0.00027397,5]
[364749419,1749228634921,-504.50789842,0.00027397,5]
[364749420,1749228634931,-821.15,0.00027397,5]
[364749421,1749228634941,-685.73,0.00027397,5]
[364749422,1749228634951,-421.28293949,0.00027397,5]
[364749423,1749228634961,-480.0,0.00027397,5]
[364749424,1749228634971,-480.0,0.00027397,5]
[364749425,1749228634981,-505.64274209,0.00027397,5]
[364749426,1749228634991,-336.52710451,0.00027397,5]
[364749427,1749228635000,-480.0,0.00027397,5]
[364749428,1749228635009,-480.0,0.00027397,5]
[364749429,1749228635019,-480.0,0.00027397,5]
[364749430,1749228635029,-480.0,0.00027397,5]
[364749431,1749228635038,-480.0,0.00027397,5]
[364749432,1749228635047,-487.24265669,0.00027397,5]
[364749433,1749228635056,-480.0,0.00027397,5]
[364749434,1749228635066,-480.0,0.00027397,5]
[364749435,1749228635076,-480.0,0.00027397,5]
[364749436,1749228635086,-480.0,0.00027397,5]
[364749437,1749228635095,-480.0,0.00027397,5]
[364749438,1749228635105,-480.0,0.00027397,5]
[364749439,1749228635117,-420.0,0.00027397,5]
[364749440,1749228635127,-768.19,0.00027397,5]
[364749441,1749228635136,-480.0,0.00027397,5]
[364749442,1749228635145,-820.37,0.00027397,5]
[364749443,1749228635154,-480.0,0.00027397,5]
[364749444,1749228635163,-480.0,0.00027397,5]
[364749445,1749228635173,-480.0,0.00027397,5]
[364749446,1749228635182,-480.0,0.00027397,5]
[364749447,1749228635191,-370.26493977,0.00027397,5]
[364749448,1749228635201,-480.0,0.00027397,5]
[364749449,1749228635210,-480.0,0.00027397,5]
[364749450,1749228635221,-357.83408628,0.00027397,5]
[364749451,1749228635231,-480.0,0.00027397,5]
[364749452,1749228635241,-482.7978479,0.00027397,5]
[364749453,1749228635251,-480.0,0.00027397,5]
[364749454,1749228635260,-480.0,0.00027397,5]
[364749455,1749228635270,-480.0,0.00027397,5]
[364749456,1749228635279,-480.0,0.00027397,5]
[364749457,1749228635289,-480.0,0.00027397,5]
[364749458,1749228635301,-480.0,0.00027397,5]
[364749459,1749228635310,-480.0,0.00027397,5]
[364749460,1749228635320,-472.09909013,0.00027397,5]
[364749461,1749228635329,-433.26244758,0.00027397,5]
[364749462,1749228635338,-480.0,0.00027397,5]
[364749463,1749228635348,-480.0,0.00027397,5]
[364749464,1749228635357,-480.0,0.00027397,5]
[364749465,1749228635367,-480.0,0.00027397,5]
[364749466,1749228635378,-480.0,0.00027397,5]
[364749467,1749228635387,-480.0,0.00027397,5]
[364749468,1749228635396,-365.30662621,0.00027397,5]
[364749469,1749228635406,-482.18080561,0.00027397,5]
[364749470,1749228635415,-480.0,0.00027397,5]
[364749471,1749228635425,-480.0,0.00027397,5]
[364749472,1749228635435,-480.89807511,0.00027397,5]
[364749473,1749228635444,-480.0,0.00027397,5]
[364749474,1749228635454,-480.0,0.00027397,5]
[364749475,1749228635463,-510.76457102,0.00027397,5]
[364749476,1749228635473,-480.0,0.00027397,5]
[364749477,1749228635483,-480.0,0.00027397,5]
[364749478,1749228635492,-480.0,0.00027397,5]
[364749479,1749228635502,-483.31580638,0.00027397,5]
[364749480,1749228635511,-480.0,0.00027397,5]
[364749481,1749228635521,-480.0,0.00027397,5]
[364749482,1749228635530,-480.0,0.00027397,5]
[364749483,1749228635541,-2634.87,0.00027397,5]
[364749484,1749228635552,-480.0,0.00027397,2]
[364749485,1749228635561,-480.0,0.00027397,5]
[364749486,1749228635571,-480.0,0.00027397,5]
[364749487,1749228635581,-480.0,0.00027397,5]
[364749488,1749228635590,-425.11222773,0.00027397,5]
[364749489,1749228635600,-480.0,0.00027397,5]
[364749490,1749228635610,-480.0,0.00027397,5]
[364749491,1749228635620,-421.57795427,0.00027397,5]
[364749492,1749228635630,-480.0,0.00027397,5]
[364749493,1749228635640,-428.23911143,0.00027397,5]
[364749494,1749228635649,-480.0,0.00027397,5]
[364749495,1749228635659,-734.51,0.00027397,5]
[364749496,1749228635669,-480.0,0.00027397,5]
[364749497,1749228635678,-868.32,0.00027397,5]
[364749498,1749228635687,-480.0,0.00027397,5]
[364749499,1749228635699,-480.0,0.00027397,5]
[364749500,1749228635709,-429.39492447,0.00027397,5]
[364749501,1749228635719,-720.17,0.00027397,5]
[364749502,1749228635729,-420.18344827,0.00027397,5]
[364749503,1749228635738,-480.0,0.00027397,5]
[364749504,1749228635748,-480.0,0.00027397,5]
[364749505,1749228635757,-436.16033311,0.00027397,5]
[364749506,1749228635767,-648.62,0.00027397,5]
[364749507,1749228635776,-480.0,0.00027397,5]
[364749508,1749228635786,-480.0,0.00027397,5]
[364749509,1749228635795,-480.0,0.00027397,5]
[364749510,1749228635804,-480.0,0.00027397,5]
[364749511,1749228635814,-480.0,0.00027397,5]
[364749512,1749228635823,-494.35060934,0.00027397,5]
[364749513,1749228635832,-1192.04,0.00027397,5]
[364749514,1749228635842,-1762.43,0.00027397,5]
[364749515,1749228635851,-422.8077953,0.00027397,5]
[364749516,1749228635862,-485.47098484,0.00027397,5]
[364749517,1749228635872,-480.0,0.00027397,5]
[364749518,1749228635881,-480.0,0.00027397,5]
[364749519,1749228635891,-1105.3,0.00027397,5]
[364749520,1749228635900,-765.03,0.00027397,5]
[364749521,1749228635909,-480.0,0.00027397,5]
[364749522,1749228635918,-480.0,0.00027397,5]
[364749523,1749228635928,-480.0,0.00027397,5]
[364749524,1749228635938,-480.0,0.00027397,5]
[364749525,1749228635948,-420.0,0.00027397,5]
[364749526,1749228635957,-480.0,0.00027397,5]
[364749527,1749228635967,-480.0,0.00027397,5]
[364749528,1749228635976,-480.0,0.00027397,5]
[364749529,1749228635986,-480.0,0.00027397,5]
[364749530,1749228635995,-480.0,0.00027397,5]
[364749531,1749228636005,-1331.84,0.00027397,5]
[364749532,1749228636015,-480.0,0.00027397,5]
[364749533,1749228636024,-484.39203584,0.00027397,5]
[364749534,1749228636034,-482.71181895,0.00027397,5]
[364749535,1749228636043,-1426.77,0.00027397,5]
[364749536,1749228636053,-481.79838109,0.00027397,5]
[364749537,1749228636062,-480.0,0.00027397,5]
[364749538,1749228636071,-480.0,0.00027397,5]
[364749539,1749228636081,-480.0,0.00027397,5]
[364749540,1749228636090,-346.6540065,0.00027397,5]
[364749541,1749228636129,-614.97,0.00027397,5]
[364749542,1749228636148,-1171.70942688,0.00027397,5]
[364749545,1749228637840,-250.0,0.00025322,2]
[364749546,1749228637852,-31.78311804,0.00027397,5]
[364749547,1749228637874,-475.24504219,0.00027397,5]
[364749548,1749228637964,-289.18728201,0.00027397,5]
[364749549,1749228638023,-1584.34805638,0.00027397,5]
[364749550,1749228638035,-848.14,0.00027397,5]
[364749551,1749228638047,-499.89,0.00027397,5]
[364749552,1749228638059,-480.0,0.00027397,5]
[364749553,1749228638071,-480.0,0.00027397,5]
[364749554,1749228638083,-1051.45,0.00027397,5]
[364749555,1749228638095,-404.34986482,0.00027397,5]
[364749610,1749228639942,-20.02106402,0.00027397,5]
[364749611,1749228639954,-480.0,0.00027397,5]
[364749612,1749228639966,-480.0,0.00027397,5]
[364749613,1749228639978,-480.0,0.00027397,5]
[364749614,1749228639990,-480.0,0.00027397,5]
[364749615,1749228640002,-463.35635532,0.00027397,5]
[364749616,1749228640013,-53.32904187,0.00027397,5]
[364749617,1749228640028,-429.93963937,0.00027397,5]
[364749618,1749228640040,-480.0,0.00027397,5]
[364749619,1749228640051,-2000.0,0.00027397,5]
[364749620,1749228640064,-522.17166458,0.00027397,5]
[364749621,1749228640075,-480.0,0.00027397,5]
[364749622,1749228640087,-600.73,0.00027397,5]
[364749623,1749228640098,-506.06873661,0.00027397,5]
[364749624,1749228640110,-480.0,0.00027397,5]
[364749625,1749228640123,-730.99,0.00027397,5]
[364749626,1749228640133,-965.57,0.00027397,5]
[364749627,1749228640146,-425.80705989,0.00027397,5]
[364749628,1749228640158,-486.31721398,0.00027397,5]
[364749629,1749228640169,-480.0,0.00027397,5]
[364749630,1749228640180,-480.0,0.00027397,5]
[364749631,1749228640192,-4153.206512,0.00027397,5]
[364749632,1749228640204,-422.38132047,0.00027397,5]
[364749633,1749228640218,-480.0,0.00027397,5]
[364749634,1749228640234,-1590.15,0.00027397,5]
[364749635,1749228640247,-480.0,0.00027397,5]
[364749636,1749228640258,-480.0,0.00027397,5]
[364749637,1749228640271,-480.0,0.00027397,5]
[364749638,1749228640282,-500.0,0.00027397,5]
[364749639,1749228640293,-480.0,0.00027397,5]
[364749640,1749228640307,-480.0,0.00027397,5]
[364749641,1749228640318,-1712.75,0.00027397,5]
[364749642,1749228640330,-154.75414649,0.00027397,5]
[364749643,1749228640341,-480.0,0.00027397,5]
[364749644,1749228640352,-300.0,0.00027397,5]
[364749645,1749228640364,-480.0,0.00027397,5]
[364749646,1749228640376,-480.0,0.00027397,5]
[364749647,1749228640388,-755.37,0.00027397,5]
[364749648,1749228640399,-527.72962559,0.00027397,5]
[364749650,1749228640411,-480.0,0.00027397,5]
[364749651,1749228640422,-480.0,0.00027397,5]
[364749652,1749228640435,-480.0,0.00027397,5]
[364749653,1749228640444,-483.21197246,0.00027397,5]
[364749654,1749228640454,-480.0,0.00027397,5]
[364749655,1749228640463,-162.836284,0.00027397,5]
[364749656,1749228640474,-463.00953548,0.00027397,5]
[364749657,1749228640484,-480.0,0.00027397,5]
[364749658,1749228640494,-480.0,0.00027397,5]
[364749659,1749228640504,-480.0,0.00027397,5]
[364749660,1749228640514,-480.0,0.00027397,5]
[364749661,1749228640524,-393.18905018,0.00027397,5]
[364749662,1749228640534,-480.0,0.00027397,5]
[364749663,1749228640544,-1227.74,0.00027397,5]
[364749664,1749228640554,-480.0,0.00027397,5]
[364749665,1749228640564,-480.0,0.00027397,5]
[364749666,1749228640574,-737.08,0.00027397,5]
[364749667,1749228640584,-480.0,0.00027397,5]
[364749668,1749228640594,-480.0,0.00027397,5]
[364749669,1749228640604,-480.0,0.00027397,5]
[364749670,1749228640617,-480.0,0.00027397,5]
[364749671,1749228640629,-480.0,0.00027397,5]
[364749672,1749228640899,-480.0,0.00027397,5]
[364749673,1749228641045,-965.47,0.00027397,5]
[364749674,1749228641069,-482.18690529,0.00027397,5]
[364749675,1749228641082,-954.93,0.00027397,5]
[364749676,1749228641091,-480.0,0.00027397,5]
[364749677,1749228641101,-480.0,0.00027397,5]
[364749678,1749228641110,-480.0,0.00027397,5]
[364749679,1749228641121,-480.0,0.00027397,5]
[364749680,1749228641130,-480.0,0.00027397,5]
[364749681,1749228641140,-480.0,0.00027397,5]
[364749682,1749228641149,-392.66732608,0.00027397,5]
[364749683,1749228641158,-480.0,0.00027397,5]
[364749684,1749228641167,-843.19,0.00027397,5]
[364749685,1749228641177,-480.0,0.00027397,5]
[364749686,1749228641186,-483.35347419,0.00027397,5]
[364749687,1749228641195,-606.93062687,0.00027397,5]
[364749688,1749228641205,-480.64535471,0.00027397,5]
[364749689,1749228641214,-480.0,0.00027397,5]
[364749690,1749228641224,-404.32452553,0.00027397,5]
[364749691,1749228641235,-480.0,0.00027397,5]
[364749692,1749228641245,-426.90771548,0.00027397,5]
[364749693,1749228641254,-500.31167585,0.00027397,5]
[364749694,1749228641263,-480.0,0.00027397,5]
[364749695,1749228641274,-425.16615008,0.00027397,5]
[364749696,1749228641283,-480.0,0.00027397,5]
[364749697,1749228641294,-480.0,0.00027397,5]
[364749698,1749228641304,-1233.47,0.00027397,5]
[364749699,1749228641313,-480.0,0.00027397,5]
[364749700,1749228641322,-480.0,0.00027397,5]
[364749701,1749228641331,-480.0,0.00027397,5]
[364749702,1749228641340,-960.96,0.00027397,5]
[364749703,1749228641350,-737.44,0.00027397,5]
[364749704,1749228641359,-454.9459083,0.00027397,5]
[364749705,1749228641369,-480.0,0.00027397,5]
[364749706,1749228641379,-480.0,0.00027397,5]
[364749707,1749228641388,-480.0,0.00027397,5]
[364749708,1749228641397,-480.0,0.00027397,5]
[364749709,1749228641407,-480.0,0.00027397,5]
[364749710,1749228641416,-480.0,0.00027397,5]
[364749711,1749228641425,-463.74791543,0.00027397,5]
[364749712,1749228641434,-480.0,0.00027397,5]
[364749713,1749228641443,-300.0,0.00027397,5]
[364749714,1749228641453,-480.0,0.00027397,5]
[364749715,1749228641462,-480.0,0.00027397,5]
[364749716,1749228641471,-480.0,0.00027397,5]
[364749717,1749228641481,-490.74532369,0.00027397,5]
[364749718,1749228641490,-486.17,0.00027397,5]
[364749719,1749228641499,-480.0,0.00027397,5]
[364749720,1749228641509,-480.0,0.00027397,5]
[364749721,1749228641518,-485.58666464,0.00027397,5]
[364749722,1749228641527,-500.0,0.00027397,5]
[364749723,1749228641536,-500.0,0.00027397,5]
[364749724,1749228641545,-480.0,0.00027397,5]
[364749725,1749228641554,-500.0,0.00027397,5]
[364749726,1749228641563,-500.0,0.00027397,5]
[364749727,1749228641573,-500.0,0.00027397,5]
[364749728,1749228641582,-500.0,0.00027397,5]
[364749729,1749228641591,-500.0,0.00027397,5]
[364749730,1749228641600,-507.31678381,0.00027397,5]
[364749731,1749228641609,-480.0,0.00027397,5]
[364749732,1749228641620,-485.31481093,0.00027397,5]
[364749733,1749228641629,-480.0,0.00027397,5]
[364749734,1749228641639,-487.91355193,0.00027397,5]
[364749735,1749228641648,-500.0,0.00027397,2]
[364749736,1749228641658,-480.0,0.00027397,5]
[364749737,1749228641667,-500.0,0.00027397,2]
[364749738,1749228641676,-354.78210209,0.00027397,2]
[364749739,1749228641685,-480.0,0.00027397,5]
[364749740,1749228641695,-500.0,0.00027397,2]
[364749741,1749228641703,-1413.68,0.00027397,5]
[364749742,1749228641713,-498.7359734,0.00027397,5]
[364749743,1749228641722,-480.0,0.00027397,5]
[364749744,1749228641731,-623.90769779,0.00027397,5]
[364749745,1749228641739,-480.0,0.00027397,5]
[364749746,1749228641748,-1148.11,0.00027397,5]
[364749747,1749228641758,-480.0,0.00027397,5]
[364749748,1749228641767,-480.0,0.00027397,5]
[364749749,1749228641776,-480.0,0.00027397,5]
[364749750,1749228641788,-647.62,0.00027397,5]
[364749751,1749228641797,-480.0,0.00027397,5]
[364749752,1749228641807,-480.0,0.00027397,5]
[364749753,1749228641817,-480.0,0.00027397,5]
[364749754,1749228641827,-480.0,0.00027397,5]
[364749755,1749228641836,-480.0,0.00027397,5]
[364749756,1749228641846,-480.0,0.00027397,5]
[364749757,1749228641855,-480.0,0.00027397,5]
[364749758,1749228641867,-620.99055429,0.00027397,5]
[364749759,1749228641876,-480.0,0.00027397,5]
[364749760,1749228641885,-480.0,0.00027397,5]
[364749761,1749228641894,-480.0,0.00027397,5]
[364749762,1749228641903,-1200.94,0.00027397,5]
[364749763,1749228641912,-480.0,0.00027397,5]
[364749764,1749228641921,-1106.64,0.00027397,5]
[364749765,1749228641930,-480.0,0.00027397,5]
[364749766,1749228641939,-1456.6,0.00027397,5]
[364749767,1749228641948,-480.0,0.00027397,5]
[364749768,1749228641958,-476.29895915,0.00027397,5]
[364749769,1749228641967,-480.0,0.00027397,5]
[364749770,1749228641976,-518.73575585,0.00027397,5]
[364749771,1749228641985,-500.0,0.00027397,5]
[364749772,1749228641994,-500.0,0.00027397,5]
[364749773,1749228642003,-480.0,0.00027397,5]
[364749774,1749228642013,-480.0,0.00027397,5]
[364749775,1749228642022,-1827.91,0.00027397,5]
[364749776,1749228642031,-412.29498911,0.00027397,5]
[364749777,1749228642040,-480.0,0.00027397,5]
[364749778,1749228642049,-480.0,0.00027397,5]
[364749779,1749228642059,-480.0,0.00027397,5]
[364749780,1749228642069,-480.0,0.00027397,5]
[364749781,1749228642078,-480.0,0.00027397,5]
[364749782,1749228642088,-480.0,0.00027397,5]
[364749783,1749228642098,-480.0,0.00027397,5]
[364749784,1749228642107,-563.77,0.00027397,5]
[364749785,1749228642117,-480.0,0.00027397,5]
[364749786,1749228642127,-485.83058293,0.00027397,5]
[364749787,1749228642136,-609.57,0.00027397,5]
[364749788,1749228642146,-480.0,0.00027397,5]
[364749789,1749228642155,-480.0,0.00027397,5]
[364749790,1749228642164,-1164.3,0.00027397,5]
[364749791,1749228642174,-480.0,0.00027397,5]
[364749792,1749228642183,-480.0,0.00027397,5]
[364749793,1749228642195,-478.87055813,0.00027397,5]
[364749794,1749228642204,-480.0,0.00027397,5]
[364749795,1749228642213,-480.0,0.00027397,5]
[364749796,1749228642224,-480.0,0.00027397,5]
[364749797,1749228642235,-480.0,0.00027397,5]
[364749798,1749228642244,-480.0,0.00027397,5]
[364749799,1749228642254,-480.0,0.00027397,5]
[364749800,1749228642264,-480.0,0.00027397,5]
[364749801,1749228642275,-561.45497211,0.00027397,5]
[364749802,1749228642284,-480.0,0.00027397,5]
[364749803,1749228642294,-743.3,0.00027397,5]
[364749804,1749228642304,-480.0,0.00027397,5]
[364749805,1749228642313,-480.0,0.00027397,5]
[364749806,1749228642322,-480.0,0.00027397,5]
[364749807,1749228642331,-480.0,0.00027397,5]
[364749808,1749228642341,-494.17906345,0.00027397,5]
[364749809,1749228642350,-820.17,0.00027397,5]
[364749810,1749228642359,-480.0,0.00027397,5]
[364749811,1749228642369,-480.0,0.00027397,5]
[364749812,1749228642378,-480.0,0.00027397,5]
[364749813,1749228642388,-480.0,0.00027397,5]
[364749814,1749228642398,-480.0,0.00027397,5]
[364749815,1749228642407,-480.0,0.00027397,5]
[364749816,1749228642416,-480.0,0.00027397,5]
[364749817,1749228642425,-480.0,0.00027397,5]
[364749818,1749228642434,-480.0,0.00027397,5]
[364749819,1749228642443,-1145.23,0.00027397,5]
[364749820,1749228642452,-480.0,0.00027397,5]
[364749821,1749228642463,-480.0,0.00027397,5]
[364749822,1749228642471,-478.72968721,0.00027397,5]
[364749823,1749228642480,-245.92635034,0.00027397,5]
[364749824,1749228642489,-480.0,0.00027397,5]
[364749825,1749228642498,-606.07,0.00027397,5]
[364749826,1749228642507,-2459.98,0.00027397,5]
[364749827,1749228642517,-480.0,0.00027397,5]
[364749828,1749228642526,-768.91,0.00027397,5]
[364749829,1749228642535,-250.0,0.00027397,5]
[364749830,1749228642544,-480.0,0.00027397,5]
[364749831,1749228642553,-480.0,0.00027397,5]
[364749832,1749228642562,-1445.3,0.00027397,5]
[364749833,1749228642571,-897.32,0.00027397,5]
[364749834,1749228642580,-480.0,0.00027397,5]
[364749835,1749228642589,-485.50042967,0.00027397,5]
[364749836,1749228642598,-480.0,0.00027397,5]
[364749837,1749228642607,-480.0,0.00027397,5]
[364749838,1749228642616,-428.89377785,0.00027397,5]
[364749839,1749228642625,-480.0,0.00027397,5]
[364749840,1749228642634,-480.0,0.00027397,5]
[364749841,1749228642644,-480.0,0.00027397,5]
[364749842,1749228642653,-3959.39,0.00027397,5]
[364749844,1749228642663,-484.38374052,0.00027397,5]
[364749846,1749228642672,-480.0,0.00027397,5]
[364749848,1749228642681,-480.0,0.00027397,5]
[364749849,1749228642690,-480.0,0.00027397,5]
[364749850,1749228642699,-480.0,0.00027397,5]
[364749851,1749228642708,-480.0,0.00027397,5]
[364749852,1749228642717,-480.0,0.00027397,5]
[364749853,1749228642726,-480.0,0.00027397,5]
[364749854,1749228642735,-1090.98,0.00027397,5]
[364749855,1749228642744,-480.0,0.00027397,5]
[364749856,1749228642754,-418.80468656,0.00027397,5]
[364749857,1749228642763,-480.0,0.00027397,5]
[364749858,1749228642772,-480.0,0.00027397,5]
[364749859,1749228642781,-480.0,0.00027397,5]
[364749860,1749228642790,-480.0,0.00027397,5]
[364749861,1749228642799,-480.0,0.00027397,5]
[364749862,1749228642808,-1960.98,0.00027397,5]
[364749863,1749228642818,-435.17107617,0.00027397,5]
[364749865,1749228642827,-5560.5,0.00027397,5]
[364749866,1749228642835,-492.31792865,0.00027397,5]
[364749867,1749228642845,-480.0,0.00027397,5]
[364749869,1749228642853,-480.0,0.00027397,5]
[364749871,1749228642862,-530.22,0.00027397,5]
[364749872,1749228642872,-1078.08,0.00027397,5]
[364749873,1749228642882,-480.0,0.00027397,5]
[364749874,1749228642891,-482.75906997,0.00027397,5]
[364749875,1749228642900,-480.0,0.00027397,5]
[364749876,1749228642909,-392.91678659,0.00027397,5]
[364749877,1749228642918,-1079.06,0.00027397,5]
[364749878,1749228642927,-495.38243071,0.00027397,5]
[364749879,1749228642937,-889.63,0.00027397,5]
[364749880,1749228642946,-496.7189745,0.00027397,5]
[364749881,1749228642955,-1242.55,0.00027397,5]
[364749882,1749228642965,-432.46830183,0.00027397,5]
[364749883,1749228642975,-840.8,0.00027397,5]
[364749884,1749228642984,-1777.52,0.00027397,5]
[364749885,1749228642993,-6947.7,0.00027397,5]
[364749886,1749228643002,-480.0,0.00027397,5]
[364749887,1749228643011,-423.27622111,0.00027397,5]
[364749888,1749228643020,-488.07361668,0.00027397,5]
[364749889,1749228643030,-480.0,0.00027397,5]
[364749890,1749228643039,-480.0,0.00027397,5]
[364749891,1749228643048,-480.0,0.00027397,5]
[364749892,1749228643057,-443.68248787,0.00027397,5]
[364749893,1749228643067,-1000.0,0.00027397,5]
[364749894,1749228643076,-480.0,0.00027397,5]
[364749895,1749228643085,-438.44740247,0.00027397,5]
[364749896,1749228643094,-465.65734134,0.00027397,5]
[364749897,1749228643104,-480.0,0.00027397,5]
[364749898,1749228643113,-466.11797011,0.00027397,5]
[364749899,1749228643123,-480.0,0.00027397,5]
[364749900,1749228643132,-480.0,0.00027397,5]
[364749901,1749228643141,-374.33019022,0.00027397,5]
[364749902,1749228643151,-480.0,0.00027397,5]
[364749903,1749228643160,-480.0,0.00027397,5]
[364749904,1749228643171,-480.0,0.00027397,5]
[364749905,1749228643180,-480.0,0.00027397,5]
[364749906,1749228643190,-480.0,0.00027397,5]
[364749907,1749228643199,-2342.85,0.00027397,5]
[364749908,1749228643210,-480.0,0.00027397,5]
[364749909,1749228643220,-487.06865553,0.00027397,5]
[364749910,1749228643232,-480.0,0.00027397,5]
[364749912,1749228643242,-10205.89,0.00027397,5]
[364749914,1749228643251,-484.88436648,0.00027397,5]
[364749915,1749228643260,-480.0,0.00027397,5]
[364749916,1749228643270,-13291.07,0.00027397,5]
[364749917,1749228643279,-493.19373307,0.00027397,5]
[364749918,1749228643289,-480.0,0.00027397,5]
[364749919,1749228643299,-480.0,0.00027397,5]
[364749920,1749228643311,-480.0,0.00027397,5]
[364749921,1749228643321,-500.09842453,0.00027397,5]
[364749922,1749228643330,-427.05153983,0.00027397,5]
[364749923,1749228643339,-480.0,0.00027397,5]
[364749924,1749228643348,-480.0,0.00027397,5]
[364749925,1749228643358,-480.0,0.00027397,5]
[364749926,1749228643368,-702.49,0.00027397,5]
[364749927,1749228643377,-480.0,0.00027397,5]
[364749928,1749228643386,-174.35824643,0.00027397,5]
[364749929,1749228643396,-480.0,0.00027397,5]
[364749930,1749228643405,-3950.44,0.00027397,5]
[364749931,1749228643414,-486.75731355,0.00027397,5]
[364749932,1749228643424,-1238.65,0.00027397,5]
[364749933,1749228643433,-3706.36,0.00027397,5]
[364749934,1749228643442,-328.48174264,0.00027397,5]
[364749935,1749228643451,-485.15260186,0.00027397,5]
[364749936,1749228643460,-480.0,0.00027397,5]
[364749937,1749228643469,-488.27536447,0.00027397,5]
[364749938,1749228643479,-480.0,0.00027397,5]
[364749939,1749228643488,-480.0,0.00027397,5]
[364749940,1749228643497,-480.0,0.00027397,5]
[364749941,1749228643507,-480.0,0.00027397,5]
[364749942,1749228643516,-1051.56,0.00027397,5]
[364749943,1749228643525,-480.0,0.00027397,5]
[364749944,1749228643534,-480.0,0.00027397,5]
[364749945,1749228643543,-734.33,0.00027397,5]
[364749946,1749228643552,-766.59,0.00027397,5]
[364749947,1749228643562,-490.68551406,0.00027397,5]
[364749948,1749228643571,-1026.48,0.00027397,5]
[364749949,1749228643580,-492.47177423,0.00027397,5]
[364749950,1749228643589,-726.65,0.00027397,5]
[364749951,1749228643599,-556.93,0.00027397,5]
[364749952,1749228643607,-480.0,0.00027397,5]
[364749953,1749228643617,-480.0,0.00027397,5]
[364749954,1749228643626,-485.10186756,0.00027397,5]
[364749955,1749228643635,-523.15744479,0.00027397,5]
[364749956,1749228643644,-480.0,0.00027397,5]
[364749957,1749228643653,-480.0,0.00027397,5]
[364749958,1749228643662,-480.0,0.00027397,5]
[364749959,1749228643672,-1072.57,0.00027397,5]
[364749960,1749228643681,-482.19885845,0.00027397,5]
[364749961,1749228643691,-480.0,0.00027397,5]
[364749962,1749228643700,-480.0,0.00027397,5]
[364749963,1749228643709,-1350.44,0.00027397,5]
[364749964,1749228643718,-1639.27,0.00027397,5]
[364749965,1749228643727,-499.12857982,0.00027397,5]
[364749966,1749228643736,-480.0,0.00027397,5]
[364749967,1749228643746,-470.98776095,0.00027397,5]
[364749968,1749228643755,-2042.33,0.00027397,5]
[364749969,1749228643764,-491.92044498,0.00027397,5]
[364749970,1749228643773,-480.0,0.00027397,5]
[364749971,1749228643782,-480.0,0.00027397,5]
[364749972,1749228643791,-1264.19,0.00027397,5]
[364749973,1749228643800,-10094.53,0.00027397,5]
[364749974,1749228643809,-480.0,0.00027397,5]
[364749975,1749228643819,-453.66251753,0.00027397,5]
[364749976,1749228643828,-339.40009498,0.00027397,5]
[364749977,1749228643837,-485.57084507,0.00027397,5]
[364749978,1749228643846,-480.0,0.00027397,5]
[364749979,1749228643855,-593.88,0.00027397,5]